bitfinex/quotes_SOLUSD_20241216
["timestamp","ask_amount","ask_price","bid_price","bid_amount"]
[1734373092848,40.20489023,219.48,219.43,4.5572]
[1734373093764,23.776884,219.48,219.43,4.5572]
[1734373093962,7.12711058,219.57,219.43,4.5572]
[1734373093963,7.12711058,219.57,219.43,162.4572]
[1734373094138,16.42800623,219.55,219.47,21.5997]
[1734373094346,16.42800623,219.57,219.51,20.0]
[1734373094539,7.12711058,219.61,219.51,20.0]
[1734373094739,28.50844234,219.64,219.52,20.0]
[1734373094740,7.12711058,219.62,219.52,20.0]
[1734373094958,16.42800623,219.58,219.51,157.9]
[1734373095172,16.42800623,219.55,219.51,157.9]
[1734373095462,16.42800623,219.52,219.47,1.5997]
[1734373095655,16.42800623,219.52,219.49,20.0]
[1734373096054,23.776884,219.51,219.49,20.0]
[1734373096253,16.42800623,219.53,219.49,20.0]
[1734373096559,23.776884,219.53,219.49,20.0]
[1734373097443,16.42800623,219.53,219.49,20.0]
[1734373097645,16.42800623,219.53,219.5,20.0]
[1734373097847,16.42800623,219.54,219.5,20.0]
[1734373098380,16.42800623,219.53,219.5,20.0]
[1734373099159,23.776884,219.52,219.5,20.0]
[1734373100490,16.42800623,219.56,219.5,20.0]
[1734373100641,23.776884,219.55,219.5,20.0]
[1734373101152,23.776884,219.55,219.51,24.5556]
[1734373101337,23.776884,219.56,219.51,24.5556]
[1734373102065,16.42800623,219.55,219.51,24.5556]
[1734373102270,23.776884,219.54,219.5,20.0]
[1734373102855,16.42800623,219.53,219.5,20.0]
[1734373103585,23.776884,219.54,219.5,20.0]
[1734373103764,40.20489023,219.55,219.5,24.5556]
[1734373104079,16.36148809,219.53,219.5,24.5556]
[1734373104275,16.42800623,219.54,219.5,24.5556]
[1734373104474,23.776884,219.53,219.5,24.5556]
[1734373104682,16.42800623,219.55,219.5,162.4556]
[1734373104876,16.42800623,219.56,219.5,162.4556]
[1734373105054,40.20489023,219.55,219.5,162.4556]
[1734373105987,7.12711058,219.63,219.5,162.4556]
[1734373105988,16.42800623,219.54,219.5,162.4556]
[1734373106757,23.776884,219.51,219.47,6.1561]
[1734373106966,16.42800623,219.5,219.47,6.1561]
[1734373107278,23.776884,219.48,219.47,6.1561]
[1734373107471,40.20489023,219.48,219.44,13.671]
[1734373107673,40.20489023,219.48,219.44,4.557]
[1734373107876,16.42800623,219.56,219.44,4.557]
[1734373107877,23.776884,219.46,219.44,4.557]
[1734373108383,40.20489023,219.46,219.44,4.557]
[1734373108865,40.20489023,219.46,219.45,20.0]
[1734373109185,40.20489023,219.46,219.44,4.557]
[1734373109379,23.776884,219.44,219.42,7.8902]
[1734373109574,40.20489023,219.43,219.42,1.596]
[1734373109773,23.776884,219.42,219.4,4.5577]
[1734373110104,23.776884,219.4,219.37,11.1646]
[1734373110405,40.20489023,219.4,219.37,11.1646]
[1734373110591,23.776884,219.4,219.37,11.1646]
[1734373110793,14.25422117,219.5,219.37,11.1646]
[1734373110794,16.42800623,219.43,219.37,11.1646]
[1734373110962,23.776884,219.42,219.37,11.1646]
[1734373111272,40.20489023,219.42,219.37,11.1646]
[1734373112281,40.20489023,219.42,219.4,20.0]
[1734373112483,16.42800623,219.41,219.4,20.0]
[1734373113362,16.42800623,219.42,219.4,20.0]
[1734373113962,16.42800623,219.43,219.4,20.0]
[1734373114293,16.42800623,219.42,219.4,20.0]
[1734373114983,7.12711058,219.5,219.4,20.0]
[1734373114984,40.20489023,219.41,219.4,20.0]
[1734373115159,40.20489023,219.41,219.39,20.0]
[1734373115567,23.776884,219.41,219.39,20.0]
[1734373116263,16.42800623,219.43,219.39,20.0]
[1734373116264,23.776884,219.42,219.39,20.0]
[1734373117994,40.20489023,219.42,219.39,20.0]
[1734373119575,16.42800623,219.4,219.39,20.0]
[1734373120309,10.52039166,219.4,219.39,20.0]
[1734373120541,10.52039166,219.4,219.34,4.5591]
[1734373120542,23.776884,219.39,219.34,4.5591]
[1734373120678,10.52039166,219.37,219.34,4.5591]
[1734373121002,23.776884,219.39,219.34,4.5591]
[1734373121003,10.52039166,219.38,219.34,4.5591]
[1734373121228,34.29727566,219.39,219.34,4.5591]
[1734373121410,23.776884,219.39,219.34,4.5591]
[1734373121578,23.776884,219.39,219.36,20.0]
[1734373122080,40.21700928,219.39,219.36,20.0]
[1734373122906,7.12711058,219.49,219.39,1.5672]
[1734373123101,16.94724772,219.52,219.4,20.0]
[1734373123102,16.44012528,219.48,219.4,20.0]
[1734373123296,16.44012528,219.47,219.41,0.68342626]
[1734373123493,16.44012528,219.46,219.4,157.9]
[1734373123701,16.44012528,219.45,219.4,157.9]
[1734373124004,16.44012528,219.45,219.42,20.0]
[1734373124384,16.44012528,219.45,219.43,20.0]
[1734373124584,40.21700928,219.44,219.43,20.0]
[1734373125005,16.44012528,219.45,219.42,20.0]
[1734373125403,16.44012528,219.43,219.42,20.0]
[1734373128810,16.44012528,219.44,219.43,4.5572]
[1734373130886,16.44012528,219.44,219.43,24.5572]
[1734373132812,16.44012528,219.44,219.42,20.0]
[1734373133000,16.44012528,219.43,219.42,20.0]
[1734373134904,23.776884,219.42,219.3,1.5451]
[1734373135205,16.44012528,219.31,219.3,1.5451]
[1734373136530,16.44012528,219.31,219.3,6.1049]
[1734373137314,16.44012528,219.33,219.3,6.1049]
[1734373137500,16.44012528,219.33,219.32,20.0]
[1734373140815,16.44012528,219.34,219.33,20.0]
[1734373141314,16.44012528,219.35,219.33,24.5593]
[1734373141911,16.44012528,219.34,219.33,24.5593]
[1734373144617,16.44012528,219.35,219.33,24.5593]
[1734373146621,16.44012528,219.34,219.33,162.4593]
[1734373147414,23.776884,219.43,219.33,24.5593]
[1734373147737,23.776884,219.43,219.33,162.4593]
[1734373147738,16.44012528,219.35,219.33,162.4593]
[1734373148102,16.44012528,219.36,219.33,162.4593]
[1734373149519,16.44012528,219.35,219.33,162.4593]
[1734373150106,16.44012528,219.34,219.33,24.5593]
[1734373152129,10.52570765,219.34,219.33,24.5593]
[1734373152826,10.52570765,219.34,219.33,20.0]
[1734373154408,10.52570765,219.34,219.3,24.5599]
[1734373154609,23.776884,219.43,219.3,24.5599]
[1734373154610,10.52570765,219.32,219.3,24.5599]
[1734373155950,23.776884,219.43,219.3,24.5599]
[1734373155951,10.52570765,219.31,219.3,24.5599]
[1734373156106,23.776884,219.3,219.27,24.5605]
[1734373156307,10.52570765,219.28,219.27,24.5605]
[1734373157119,7.12711058,219.41,219.27,24.5605]
[1734373157310,10.52570765,219.3,219.28,20.0]
[1734373157516,10.52570765,219.29,219.28,20.0]
[1734373158113,23.776884,219.41,219.3,20.0]
[1734373158329,23.776884,219.41,219.3,24.5599]
[1734373158518,30.90399458,219.41,219.3,24.5599]
[1734373159035,10.52570765,219.31,219.3,24.5599]
[1734373159912,10.52570765,219.32,219.3,24.5599]
[1734373160122,10.52570765,219.33,219.3,24.5599]
[1734373160644,10.52570765,219.34,219.3,24.5599]
[1734373161740,10.52570765,219.33,219.3,24.5599]
[1734373161939,10.52570765,219.33,219.3,162.4599]
[1734373162117,10.52570765,219.32,219.3,24.5599]
[1734373162319,10.52570765,219.31,219.28,20.0]
[1734373162557,10.52570765,219.31,219.29,20.0]
[1734373163034,10.52570765,219.32,219.29,20.0]
[1734373163347,10.52570765,219.32,219.29,24.56]
[1734373164522,10.52570765,219.33,219.29,24.56]
[1734373164738,10.52570765,219.34,219.29,24.56]
[1734373165824,30.90399458,219.42,219.29,162.46]
[1734373166046,10.52570765,219.34,219.29,162.46]
[1734373167025,10.52570765,219.35,219.29,171.5803]
[1734373167218,10.52570765,219.36,219.32,20.0]
[1734373167446,10.52570765,219.37,219.33,20.0]
[1734373167740,23.776884,219.36,219.33,20.0]
[1734373167944,10.52570765,219.37,219.33,20.0]
[1734373168246,10.52570765,219.37,219.34,4.5591]
[1734373168738,10.52570765,219.35,219.34,4.5591]
[1734373168927,10.52570765,219.36,219.34,4.5591]
[1734373169131,23.776884,219.43,219.34,4.5591]
[1734373169317,10.52570765,219.35,219.34,4.5591]
[1734373170625,34.30259165,219.35,219.34,4.5591]
[1734373173125,23.776884,219.43,219.34,4.5591]
[1734373173332,23.776884,219.43,219.35,24.5589]
[1734373173532,10.52570765,219.36,219.35,24.5589]
[1734373173726,55.29704118,219.45,219.35,24.5589]
[1734373173727,13.19421058,219.45,219.36,20.0]
[1734373173935,62.01688468,219.54,219.35,162.4589]
[1734373173936,10.52570765,219.42,219.37,164.07505025]
[1734373174155,10.52570765,219.41,219.4,20.0]
[1734373174354,7.12711058,219.48,219.4,20.0]
[1734373174655,10.52570765,219.41,219.4,20.0]
[1734373175031,23.776884,219.4,219.32,20.0]
[1734373175248,10.52570765,219.36,219.33,20.0]
[1734373175558,10.52570765,219.39,219.35,20.0]
[1734373175847,10.52570765,219.39,219.37,20.0]
[1734373176048,10.52570765,219.39,219.38,20.0]
[1734373176353,10.52570765,219.4,219.38,20.0]
[1734373176733,10.52570765,219.39,219.38,157.9]
[1734373177039,10.52570765,219.39,219.38,162.4583]
[1734373177855,34.30259165,219.39,219.38,162.4583]
[1734373178971,23.776884,219.39,219.38,162.4583]
[1734373179248,34.30259165,219.39,219.38,162.4583]
[1734373180055,34.30259165,219.39,219.38,24.5583]
[1734373180645,10.52570765,219.39,219.38,24.5583]
[1734373181261,34.30259165,219.39,219.36,20.0]
[1734373181438,10.52570765,219.37,219.36,20.0]
[1734373182760,34.30259165,219.37,219.33,20.0]
[1734373182962,10.52570765,219.34,219.31,4.5597]
[1734373183170,10.52570765,219.32,219.31,4.5597]
[1734373185157,34.30259165,219.32,219.31,4.5597]
[1734373185576,34.30259165,219.32,219.31,24.5597]
[1734373185942,10.52570765,219.32,219.31,24.5597]
[1734373187262,23.776884,219.31,219.28,24.5603]
[1734373187558,10.52570765,219.29,219.28,24.5603]
[1734373189163,14.25422117,219.38,219.28,24.5603]
[1734373189164,10.52570765,219.33,219.28,24.5603]
[1734373189367,10.52570765,219.33,219.28,33.681]
[1734373190448,2.71067819,219.38,219.28,33.681]
[1734373190653,10.52570765,219.29,219.28,24.5603]
[1734373190866,34.30259165,219.29,219.28,24.5603]
[1734373193654,23.776884,219.28,219.23,0.5434865]
[1734373193853,34.30259165,219.24,219.23,0.5434865]
[1734373196955,76.40542225,219.24,219.23,0.5434865]
[1734373197474,34.30259165,219.24,219.23,0.5434865]
[1734373198265,76.40542225,219.24,219.23,0.5434865]
[1734373199362,76.40542225,219.24,219.2,20.0]
[1734373199569,10.52570765,219.21,219.17,4.5624]
[1734373199757,10.52570765,219.18,219.17,4.5624]
[1734373200654,23.776884,219.22,219.17,4.5624]
[1734373201084,7.12711058,219.26,219.19,20.0]
[1734373201373,10.52570765,219.22,219.19,20.0]
[1734373201752,10.52570765,219.22,219.2,20.0]
[1734373202170,7.12711058,219.31,219.22,20.0]
[1734373202355,10.52570765,219.26,219.24,20.0]
[1734373202554,10.52570765,219.25,219.24,20.0]
[1734373202960,10.52570765,219.25,219.23,20.0]
[1734373203179,52.62853825,219.24,219.19,1.5332]
[1734373203475,23.776884,219.19,219.18,4.5624]
[1734373203781,34.30259165,219.19,219.18,4.5624]
[1734373204302,40.24828224,219.19,219.15,4.563]
[1734373204465,16.47139824,219.16,219.15,4.563]
[1734373204970,16.47139824,219.18,219.17,20.0]
[1734373205173,16.47139824,219.19,219.17,20.0]
[1734373205957,16.47139824,219.18,219.17,20.0]
[1734373206262,40.24828224,219.18,219.17,20.0]
[1734373206462,23.776884,219.17,219.12,4.5636]
[1734373206667,16.47139824,219.16,219.12,4.5636]
[1734373207057,16.47139824,219.15,219.12,4.5636]
[1734373207679,40.24828224,219.15,219.14,20.0]
[1734373207881,40.24828224,219.15,219.12,4.5636]
[1734373208193,18.28826389,219.23,219.02,1.545]
[1734373208194,23.776884,219.12,219.02,1.545]
[1734373208360,40.24828224,219.12,219.03,4.5655]
[1734373208680,23.776884,219.03,219.02,1.545]
[1734373208859,40.24828224,219.03,219.02,1.545]
[1734373209365,40.24828224,219.03,218.99,4.5662]
[1734373209688,56.71968048,219.02,218.95,4.5671]
[1734373209892,23.776884,219.01,218.9,1.545]
[1734373210059,16.47139824,218.91,218.84,13.7085]
[1734373210474,40.24828224,219.01,218.84,13.7085]
[1734373210475,16.47139824,218.9,218.84,13.7085]
[1734373211263,45.24828224,219.01,218.84,13.7085]
[1734373211476,16.47139824,218.87,218.84,4.5695]
[1734373211675,16.47139824,218.91,218.84,4.5695]
[1734373211982,16.47139824,218.91,218.84,13.7085]
[1734373212182,16.47139824,218.9,218.84,13.7085]
[1734373212571,23.776884,219.0,218.84,152.29366933]
[1734373212775,16.47139824,218.94,218.87,20.0]
[1734373212975,16.47139824,218.94,218.88,24.5687]
[1734373213171,16.47139824,218.94,218.88,33.7061]
[1734373213374,16.47139824,218.99,218.9,20.0]
[1734373213573,16.47139824,218.99,218.88,18.7061]
[1734373213574,16.47139824,219.0,218.92,6.5974]
[1734373213807,16.47139824,218.98,218.95,20.0]
[1734373213980,16.47139824,218.99,218.95,20.0]
[1734373214286,16.47139824,218.96,218.95,20.0]
[1734373214865,23.776884,218.98,218.96,4.567]
[1734373215285,16.47139824,218.99,218.96,4.567]
[1734373215665,16.47139824,218.98,218.96,4.567]
[1734373216066,16.47139824,219.0,218.96,4.567]
[1734373216295,18.29176938,219.12,218.96,4.567]
[1734373216296,16.47139824,219.01,218.97,20.0]
[1734373216502,16.47139824,219.02,218.97,20.0]
[1734373216674,16.47139824,219.03,218.99,20.0]
[1734373217105,16.47139824,219.02,218.99,20.0]
[1734373217480,16.47139824,219.07,219.02,20.0]
[1734373217678,16.47139824,219.08,219.05,20.0]
[1734373218370,16.47139824,219.07,219.05,20.0]
[1734373218564,16.47139824,219.07,219.06,4.5649]
[1734373218765,16.47139824,219.08,219.06,4.5649]
[1734373219399,16.47139824,219.09,219.06,4.5649]
[1734373219901,16.47139824,219.08,219.06,4.5649]
[1734373220391,16.47139824,219.11,219.06,4.5649]
[1734373220604,21.47139824,219.23,219.09,4.5643]
[1734373220605,16.47139824,219.23,219.09,4.5643]
[1734373220794,16.47139824,219.15,219.11,20.0]
[1734373220968,16.47139824,219.17,219.12,20.0]
[1734373221371,6.1522,219.26,219.12,20.0]
[1734373221372,16.47139824,219.18,219.12,20.0]
[1734373221787,16.47139824,219.17,219.12,20.0]
[1734373221985,16.47139824,219.17,219.14,20.0]
[1734373222188,26.35423922,219.17,219.14,20.0]
[1734373222672,26.35423922,219.15,219.14,20.0]
[1734373222991,26.35423922,219.15,219.12,20.0]
[1734373223180,26.35423922,219.13,219.09,24.5642]
[1734373223382,26.35423922,219.16,219.09,24.5642]
[1734373223611,23.776884,219.15,219.1,20.0]
[1734373223907,23.776884,219.2,219.12,20.0]
[1734373224210,26.35423922,219.19,219.14,20.0]
[1734373224412,26.35423922,219.17,219.14,20.0]
[1734373224616,26.35423922,219.19,219.14,20.0]
[1734373224916,26.35423922,219.2,219.15,4.563]
[1734373225086,26.35423922,219.19,219.15,4.563]
[1734373225786,23.776884,219.18,219.15,4.563]
[1734373226172,26.35423922,219.22,219.15,162.463]
[1734373226515,26.35423922,219.25,219.15,171.5891]
[1734373226678,26.35423922,219.26,219.19,20.0]
[1734373227393,26.35423922,219.25,219.2,4.562]
[1734373227585,50.13112322,219.23,219.2,4.562]
[1734373228270,23.776884,219.23,219.2,4.562]
[1734373228676,50.13112322,219.23,219.2,4.562]
[1734373228917,23.776884,219.23,219.2,4.562]
[1734373229287,50.13112322,219.23,219.2,4.562]
[1734373229517,50.13112322,219.23,219.19,18.81770602]
[1734373230207,26.35423922,219.22,219.19,18.81770602]
[1734373230618,50.13112322,219.23,219.19,18.81770602]
[1734373230811,26.35423922,219.22,219.19,18.81770602]
[1734373231008,23.776884,219.21,219.19,18.81770602]
[1734373231236,23.776884,219.21,219.15,9.1261]
[1734373231640,23.776884,219.21,219.18,20.0]
[1734373232343,23.776884,219.21,219.19,4.5622]
[1734373233170,2.77618006,219.29,219.18,20.0]
[1734373233171,23.776884,219.19,219.18,20.0]
[1734373233320,23.776884,219.19,219.11,137.9]
[1734373233321,50.13112322,219.19,219.15,4.5629]
[1734373233519,26.35423922,219.16,219.15,4.5629]
[1734373233735,50.13112322,219.16,219.15,4.5629]
[1734373237130,50.13112322,219.16,219.11,4.5637]
[1734373237327,26.35423922,219.12,219.11,4.5637]
[1734373237546,50.13112322,219.12,219.11,4.5637]
[1734373238254,23.776884,219.11,219.06,13.6946]
[1734373238437,26.35423922,219.07,219.06,13.6946]
[1734373240749,26.35423922,219.07,219.06,9.1297]
[1734373240925,26.35423922,219.07,219.02,4.5657]
[1734373241252,26.35423922,219.05,219.02,4.5657]
[1734373241554,17.30643922,219.05,219.02,4.5657]
[1734373241729,14.80883922,219.05,219.02,4.5657]
[1734373242054,12.31123922,219.05,219.02,4.5657]
[1734373242260,26.35423922,219.03,219.02,4.5657]
[1734373243137,26.35423922,219.04,219.02,4.5657]
[1734373243351,23.776884,219.11,219.02,4.5657]
[1734373243661,26.35423922,219.06,219.03,20.0]
[1734373244035,26.35423922,219.05,219.03,20.0]
[1734373244234,16.48743634,219.05,219.03,20.0]
[1734373244462,16.48743634,219.05,219.04,4.5653]
[1734373244959,23.776884,219.11,219.04,4.5653]
[1734373244960,16.48743634,219.06,219.04,4.5653]
[1734373246165,16.48743634,219.05,219.04,4.5653]
[1734373246870,16.48743634,219.05,219.0,147.0324]
[1734373247163,23.776884,219.11,219.01,4.566]
[1734373247530,16.48743634,219.02,219.01,4.566]
[1734373248245,16.48743634,219.02,218.98,9.1329]
[1734373248450,16.48743634,218.99,218.98,9.1329]
[1734373248744,16.48743634,219.0,218.98,9.1329]
[1734373250257,16.48743634,218.99,218.98,9.1329]
[1734373251524,16.48743634,219.0,218.98,9.1329]
[1734373252227,16.48743634,219.01,218.98,9.1329]
[1734373252423,16.48743634,219.02,219.0,20.0]
[1734373252652,25.61945856,219.11,219.01,20.0]
[1734373252653,16.48743634,219.04,219.01,20.0]
[1734373252859,16.48743634,219.04,219.02,20.0]
[1734373253049,16.48743634,219.03,219.02,20.0]
[1734373259160,16.48743634,219.03,219.01,20.0]
[1734373259358,16.48743634,219.02,219.01,20.0]
[1734373261543,23.776884,219.1,219.02,4.5657]
[1734373261750,16.48743634,219.06,219.02,24.5657]
[1734373261937,16.48743634,219.12,219.04,20.0]
[1734373261938,16.48743634,219.07,219.04,20.0]
[1734373262137,16.48743634,219.06,219.04,20.0]
[1734373262573,16.48743634,219.06,219.05,4.5651]
[1734373262773,16.48743634,219.08,219.05,24.5651]
[1734373263060,16.48743634,219.09,219.05,24.5651]
[1734373263538,16.48743634,219.1,219.06,20.0]
[1734373263749,2.76234248,219.18,219.05,26.1344]
[1734373263750,16.48743634,219.11,219.08,20.0]
[1734373263940,16.48743634,219.12,219.08,20.0]
[1734373264160,16.48743634,219.14,219.09,20.0]
[1734373264349,16.48743634,219.14,219.11,20.0]
[1734373264537,16.48743634,219.14,219.12,20.0]
[1734373264959,16.48743634,219.13,219.12,20.0]
[1734373265164,16.48743634,219.13,219.11,20.0]
[1734373265362,16.48743634,219.12,219.1,4.5639]
[1734373265964,16.48743634,219.13,219.1,4.5639]
[1734373266347,16.48743634,219.13,219.1,24.5639]
[1734373267269,16.48743634,219.13,219.09,23.4231]
[1734373267655,16.48743634,219.11,219.09,23.4231]
[1734373268664,16.48743634,219.12,219.09,23.4231]
[1734373269265,16.48743634,219.11,219.09,23.4231]
[1734373269872,23.776884,219.19,219.09,23.4231]
[1734373270073,16.48743634,219.11,219.09,23.4231]
[1734373271166,16.48743634,219.12,219.09,23.4231]
[1734373271370,16.48743634,219.13,219.09,23.4231]
[1734373271890,16.48743634,219.13,219.11,3.4229]
[1734373272069,16.48743634,219.12,219.11,3.4229]
[1734373273585,16.48743634,219.14,219.11,23.4229]
[1734373273793,16.48743634,219.15,219.11,23.4229]
[1734373274393,16.48743634,219.14,219.13,3.4226]
[1734373274779,16.48743634,219.15,219.13,3.4226]
[1734373275498,16.48743634,219.14,219.09,137.9]
[1734373275699,16.48743634,219.1,219.05,139.4693]
[1734373276495,16.48743634,219.11,219.05,139.4693]
[1734373276996,16.48743634,219.11,219.08,20.0]
[1734373277172,16.48743634,219.12,219.09,20.0]
[1734373277676,16.48743634,219.15,219.09,157.9]
[1734373278000,16.48743634,219.14,219.1,0.68436553]
[1734373278249,16.48743634,219.12,219.11,2.2819]
[1734373279821,16.48743634,219.13,219.11,2.2819]
[1734373280895,23.776884,219.21,219.11,2.2819]
[1734373281095,16.48743634,219.15,219.11,2.2819]
[1734373281684,16.48743634,219.14,219.11,2.2819]
[1734373283490,16.48743634,219.13,219.11,2.2819]
[1734373287500,16.48743634,219.14,219.11,2.2819]
[1734373288011,10.54459581,219.13,219.11,2.2819]
[1734373289300,10.54459581,219.12,219.1,1.141]
[1734373289497,10.54459581,219.11,219.1,1.141]
[1734373290411,28.776884,219.21,219.06,20.0]
[1734373290613,10.54459581,219.07,219.05,21.5693]
[1734373291014,10.54459581,219.06,219.05,1.5693]
[1734373291213,10.54459581,219.06,218.99,5.0]
[1734373291214,10.54459581,219.06,218.99,139.4191]
[1734373291431,10.54459581,219.03,219.0,138.02549]
[1734373291718,10.54459581,219.03,219.0,137.9]
[1734373291932,10.54459581,219.02,218.99,139.4191]
[1734373292097,10.54459581,219.0,218.99,1.5191]
[1734373293294,10.54459581,219.0,218.99,21.5191]
[1734373293520,10.54459581,219.0,218.99,20.0]
[1734373294020,10.54459581,219.0,218.94,139.5553]
[1734373294223,16.50363571,218.95,218.94,1.6553]
[1734373294721,16.50363571,218.95,218.92,137.9]
[1734373294893,16.50363571,219.01,218.88,1.6553]
[1734373294894,16.50363571,218.93,218.88,1.6553]
[1734373295100,16.50363571,218.9,218.88,1.6553]
[1734373295800,16.50363571,218.91,218.88,1.6553]
[1734373296017,16.50363571,218.9,218.88,1.6553]
[1734373296217,16.50363571,218.91,218.9,20.0]
[1734373296420,16.50363571,218.94,218.9,20.0]
[1734373296630,16.50363571,218.95,218.91,20.0]
[1734373297004,1.2491,219.02,218.91,20.68495687]
[1734373297202,6.4946,219.07,218.95,20.0]
[1734373297396,16.50363571,219.01,218.96,0.6847783]
[1734373297600,16.50363571,219.03,218.96,0.6847783]
[1734373297823,1.87937853,219.1,218.96,0.6847783]
[1734373298022,16.50363571,219.03,218.96,0.6847783]
[1734373298321,16.50363571,219.02,218.96,0.6847783]
[1734373298512,16.50363571,219.03,218.96,0.6847783]
[1734373298905,16.50363571,219.04,218.97,20.0]
[1734373299102,16.50363571,219.05,219.01,20.0]
[1734373299434,16.50363571,219.06,219.01,20.0]
[1734373299615,16.50363571,219.05,219.01,20.68464817]
[1734373300032,22.80283571,219.12,219.01,20.68464817]
[1734373300033,16.50363571,219.04,219.01,20.68464817]
[1734373300606,22.80283571,219.12,219.01,20.68464817]
[1734373300607,6.2992,219.12,219.01,20.68464817]
[1734373300952,16.50363571,219.07,219.01,20.68464817]
[1734373301140,16.50363571,219.05,219.01,20.68464817]
[1734373301443,16.50363571,219.05,219.01,20.0]
[1734373301645,16.50363571,219.05,218.99,0.6846598]
[1734373301646,16.50363571,219.06,219.02,20.0]
[1734373301815,16.50363571,219.07,219.02,20.68462537]
[1734373304241,1.83342353,219.16,219.02,158.58462537]
[1734373304242,16.50363571,219.09,219.02,158.58462537]
[1734373304447,16.50363571,219.09,219.02,157.9]
[1734373305441,7.85348966,219.17,219.06,20.0]
[1734373305442,16.50363571,219.11,219.06,20.0]
[1734373306050,16.50363571,219.12,219.07,20.68450697]
[1734373308360,16.50363571,219.11,219.07,20.0]
[1734373308666,16.50363571,219.1,219.08,20.0]
[1734373310570,16.50363571,219.09,219.06,20.0]
[1734373311270,16.50363571,219.1,219.06,20.0]
[1734373311447,16.50363571,219.1,219.07,20.0]
[1734373311858,16.50363571,219.11,219.07,20.0]
[1734373312372,16.50363571,219.09,219.04,20.0]
[1734373312545,16.50363571,219.08,219.04,20.0]
[1734373312747,23.776884,219.17,219.04,20.0]
[1734373312748,16.50363571,219.09,219.04,20.0]
[1734373313459,16.50363571,219.07,219.02,0.6845752]
[1734373313661,16.50363571,219.07,219.0,0.68463629]
[1734373314249,16.50363571,219.08,219.0,0.68463629]
[1734373314478,16.50363571,219.09,219.0,0.68463629]
[1734373314757,16.50363571,219.1,219.01,20.68459852]
[1734373314953,16.50363571,219.11,219.03,20.0]
[1734373315273,16.50363571,219.13,219.04,20.68453612]
[1734373315454,16.50363571,219.13,219.06,20.0]
[1734373315658,16.50363571,219.13,219.07,0.68447672]
[1734373316043,16.50363571,219.15,219.07,0.68447672]
[1734373316247,16.50363571,219.15,219.07,2.31977672]
[1734373316873,5.75524404,219.19,219.07,2.31977672]
[1734373317059,16.50363571,219.16,219.07,2.31977672]
[1734373317257,16.50363571,219.16,219.08,20.12549]
[1734373317443,16.50363571,219.16,219.09,20.68437112]
[1734373317648,16.50363571,219.15,219.09,20.68437112]
[1734373317975,16.50363571,219.15,219.09,20.0]
[1734373319256,16.50363571,219.13,219.09,20.0]
[1734373319652,16.50363571,219.14,219.09,20.0]
[1734373319855,16.50363571,219.15,219.09,20.0]
[1734373320167,16.50363571,219.14,219.09,20.0]
[1734373321059,16.50363571,219.16,219.09,20.68438105]
[1734373321570,16.50363571,219.15,219.09,20.68438105]
[1734373321971,16.50363571,219.14,219.09,20.0]
[1734373323302,16.50363571,219.18,219.09,20.68440968]
[1734373323472,16.50363571,219.19,219.1,0.12549]
[1734373323647,1.86837904,219.23,219.11,20.68428538]
[1734373323648,16.50363571,219.2,219.11,20.68428538]
[1734373323848,16.50363571,219.17,219.11,20.68428538]
[1734373324070,16.50363571,219.17,219.11,0.68428538]
[1734373324273,16.50363571,219.17,219.1,20.12549]
[1734373324451,16.50363571,219.17,219.11,0.68432232]
[1734373324850,16.50363571,219.17,219.11,20.68432232]
[1734373325063,8.86200785,219.26,219.12,0.12549]
[1734373325064,16.50363571,219.18,219.12,0.12549]
[1734373325270,16.50363571,219.2,219.13,0.68423458]
[1734373325467,16.50363571,219.22,219.14,20.12549]
[1734373325662,16.50363571,219.22,219.15,0.68417689]
[1734373325865,8.81686869,219.28,219.16,20.12549]
[1734373326167,16.50363571,219.25,219.17,2.24519197]
[1734373326370,16.50363571,219.26,219.18,0.12549]
[1734373326561,16.50363571,219.24,219.19,0.68404311]
[1734373326754,16.50363571,219.24,219.19,20.68404311]